Cogmind - Beta 16 @@@ ROGUE MODE // 2025.11.04 @ 14:29:53 Player: Omega Result: Self-destructed Performance ------------- Evolutions (2) 1000 Regions Visited (6) 1200 Robots Destroyed (19) 95 Value Destroyed (555) 555 Prototype IDs (2) 40 Alien Tech Used (0) 0 Bonus (391) 391 TOTAL SCORE: 3281 Bonus ------- Follower Combat Kills 91 Aligned with FarCom 300 Cogmind --------- Core Integrity 550/550 Matter 300/300 Energy 250/250 System Corruption 0% Temperature Hot (274) Movement Treading (160) Location -8/Materials Parts ------- > --- POWER (2) -------- Ion Engine > --- PROPULSION (3) --- Light Treads Light Treads Light Treads > --- UTILITY (4) ------ Large Storage Unit Modified TNC Hardened Light Armor Plating Tractor Beam > --- WEAPON (2) ------- Advanced Beam Cannon Advanced Beam Cannon > --- INVENTORY (15) --- Ion Engine Reinforced Ion Engine Light Treads Aerolev Unit Humpback Medium Matter Pod (100) Weight Redist. System Improved Signal Interpreter Improved Terrain Scanner Advanced Beam Cannon Advanced Beam Cannon Assault Cannon Grenade Launcher Mining Laser Peak State ------------ > --- POWER ------------ Ion Engine Ion Engine > --- PROPULSION ------- Light Treads Light Treads Light Treads > --- UTILITY ---------- Large Storage Unit Modified TNC Hardened Light Armor Plating Tractor Beam > --- WEAPON ----------- Advanced Beam Cannon Advanced Beam Cannon > --- INVENTORY -------- Ion Engine Reinforced Ion Engine Light Treads Aerolev Unit Humpback Medium Matter Pod Weight Redist. System Improved Signal Interpreter Improved Terrain Scanner Advanced Beam Cannon Advanced Beam Cannon Assault Cannon Grenade Launcher Mining Laser [Rating: 24] Favorites ----------- Power Ion Engine Engine Ion Engine Propulsion Light Treads Treads Light Treads Utility Large Storage Unit Device Tractor Beam Storage Large Storage Unit Processor Modified TNC Protection Hardened Light Armor Plating Weapon Advanced Beam Cannon Energy Cannon Advanced Beam Cannon Ballistic Gun Light Assault Rifle Build | -11 -10 -9 -9 -9 -8 -8 ------- Run | Yrd Mat Mat Min Exi Min Mat Slots Evolved 4 | . . 2 . . . 2 Power 1 | . . 1 . . . . Propulsion 1 | . . 1 . . . . Utility 2 | . . . . . . 2 Weapon . | . . . . . . . Parts Attached 26 | 8 3 9 2 1 1 2 Power 5 | 1 1 2 . . 1 . Engine 5 | 1 1 2 . . 1 . Core . | . . . . . . . Reactor . | . . . . . . . Propulsion 5 | 2 . 2 1 . . . Treads 5 | 2 . 2 1 . . . Leg . | . . . . . . . Wheel . | . . . . . . . Hover . | . . . . . . . Flight . | . . . . . . . Utility 11 | 3 2 2 1 1 . 2 Device 2 | 1 . . 1 . . . Storage 5 | 2 1 1 . . . 1 Processor 3 | . 1 1 . 1 . . Hackware . | . . . . . . . Protection 1 | . . . . . . 1 Artifact . | . . . . . . . Weapon 5 | 2 . 3 . . . . Energy Gun . | . . . . . . . Energy Cannon 3 | . . 3 . . . . Ballistic Gun 2 | 2 . . . . . . Ballistic Cannon . | . . . . . . . Launcher . | . . . . . . . Special Weapon . | . . . . . . . Impact Weapon . | . . . . . . . Slashing Weapon . | . . . . . . . Piercing Weapon . | . . . . . . . Special Melee Weapon . | . . . . . . . Unidentified Prototypes 2 | . . 1 . 1 . . Parts Lost 2 | . . 1 . . . 1 Power 2 | . . 1 . . . 1 Propulsion . | . . . . . . . Utility . | . . . . . . . Weapon . | . . . . . . . Highest Loss Streak 1 | . . 1 . . . 1 To Critical Strikes . | . . . . . . . Average Backups 11 | 3 8 12 13 13 13 12 Power 1 | 1 2 1 1 2 2 2 Propulsion . | . . . . 1 1 1 Utility 5 | . 3 6 7 6 6 4 Weapon 3 | 1 2 4 4 4 4 4 Tool/Special . | . . . . . . . Unused Backups 16 | . . 3 . 2 . 11 Power 2 | . . . . . . 2 Propulsion 1 | . . . . . . 1 Utility 6 | . . 1 . 2 . 3 Weapon 7 | . . 2 . . . 5 Tool/Special . | . . . . . . . Average Slot Usage (%) 96 | . 90 88 100 100 100 99 Engine 19 | . 14 17 22 22 22 18 Treads 30 | . 28 26 33 33 33 27 Device 4 | . . . 10 5 . 8 Storage 12 | . 16 11 11 11 11 9 Processor 5 | . 1 11 . 6 11 9 Energy Cannon 15 | . . 11 22 22 22 18 Ballistic Gun 7 | . 28 10 . . . . Peak Build Rating 24 | 9 9 17 17 21 21 24 Average Rating 14 | 5 7 12 16 18 20 23 On Entrance 12 | . 7 9 17 16 21 20 Avg Prop Armor Cover (%) 8 | . . 8 . . . . Naked Turns . | . . . . . . . Heaviest Build 46 | 18 46 46 41 41 40 44 Greatest Support 60 | 40 40 60 60 60 60 60 Greatest Overweight (x) 1 | . 1 1 . . . . Average Overweight (x) . | . . . . . . . Largest Inventory Capacity 35 | 8 20 20 15 15 15 35 Average Capacity 15 | 7 17 16 15 15 15 15 Most Carried 15 | 6 10 15 15 15 15 15 Average Carried 12 | 3 8 12 14 14 14 13 Final Capacity 20 | 8 20 15 15 15 15 15 Final Carried 15 | 6 10 14 15 15 15 15 Class Distribution -------------------- 62% | Mutant 37% | Scavenger-Mutant Dominant Class ---------------- Mutant | -10/Materials Mutant | -9/Materials Scavenger-Mutant | -9/Mines Mutant | -9/Exiles Mutant | -8/Mines Scavenger-Mutant | -8/Materials Resources | -11 -10 -9 -9 -9 -8 -8 ----------- Run | Yrd Mat Mat Min Exi Min Mat Matter Collected 666 | 292 134 174 20 . 16 30 Remotely 40 | . . . 10 . . 30 Salvage Created 777 | 105 134 299 174 . 65 . Parts 46 | 8 8 18 8 . 4 . Haulers Intercepted 2 | . . 2 . . . . Recyclers Shooed . | . . . . . . . Parts Field Recycled . | . . . . . . . Retrieved Matter . | . . . . . . . Parts Self-Destructed . | . . . . . . . Prevented . | . . . . . . . Parts Restored . | . . . . . . . Kills | -11 -10 -9 -9 -9 -8 -8 ------- Run | Yrd Mat Mat Min Exi Min Mat Combat Hostiles Destroyed 13 | . 2 4 4 . 3 . Guns 2 | . 2 . . . . . Cannons 9 | . . 4 3 . 2 . Classes Destroyed 9 | 2 2 3 . . 2 . Tunneler 1 | 1 . . . . . . Hauler 2 | . . 2 . . . . Recycler 1 | 1 . . . . . . Watcher 2 | . 2 . . . . . Swarmer 2 | . . . . . 2 . Grunt 6 | . 2 1 3 . . . Duelist 2 | . . 1 1 . . . Sentry 2 | . . 2 . . . . Hunter 1 | . . . . . 1 . Best Kill Streak 3 | 2 2 2 3 . 1 . Combat Bots Only 3 | . 2 2 3 . 1 . Max Kills in Single Turn 1 | 1 1 1 1 . 1 . Gunslinging . | . . . . . . . Exploded . | . . . . . . . Melee . | . . . . . . . Uniques/NPCs Destroyed . | . . . . . . . Combat | -11 -10 -9 -9 -9 -8 -8 -------- Run | Yrd Mat Mat Min Exi Min Mat Hostile Shots Fired 74 | . 9 28 4 . 18 15 Missed 17 | . 3 8 . . 3 3 Hits 57 | . 6 20 4 . 15 12 Melee 9 | . . 6 2 . . 1 Projectile 48 | . 6 14 2 . 15 11 Critical Strikes 5 | . 1 3 1 . . . Damage Taken 942 | . 85 364 90 . 198 205 Core 92 | . 32 . 45 . 15 . Absorbed by Shields . | . . . . . . . Core Remaining (%) 90 | 100 87 . . . 85 . Volleys Fired 56 | 3 13 16 13 . 8 3 Largest 2 | 2 2 2 2 . 2 2 Hottest 136 | 40 40 136 136 . 136 136 Shots Fired 102 | 6 26 30 18 . 16 6 Gun 40 | 6 26 8 . . . . Cannon 62 | . . 22 18 . 16 6 Launcher . | . . . . . . . Special . | . . . . . . . Kinetic 40 | 6 26 8 . . . . Thermal 62 | . . 22 18 . 16 6 Explosive . | . . . . . . . Electromagnetic . | . . . . . . . Robot Hit Streak 9 | 2 9 6 9 . 3 2 Robot Miss Streak 5 | 2 5 4 2 . 2 2 Penetration Max . | . . . . . . . Secondary Targets . | . . . . . . . Shots Hit Robots 54 | 3 14 16 9 . 9 3 Core Hits 28 | 3 9 9 4 . 3 . Critical Kills . | . . . . . . . Critical Parts Destroyed . | . . . . . . . Critical Strikes . | . . . . . . . Melee Attacks . | . . . . . . . Impact . | . . . . . . . Slashing . | . . . . . . . Piercing . | . . . . . . . Sneak Attacks . | . . . . . . . Combat Hostiles . | . . . . . . . Follow-up Attacks . | . . . . . . . Damage Inflicted 924 | 31 138 293 205 . 195 62 Guns 239 | 31 138 70 . . . . Cannons 674 | . . 223 205 . 184 62 Explosions . | . . . . . . . Melee . | . . . . . . . Ramming 11 | . . . . . 11 . Kinetic 239 | 31 138 70 . . . . Thermal 674 | . . 223 205 . 184 62 Explosive . | . . . . . . . Electromagnetic . | . . . . . . . Impact . | . . . . . . . Slashing . | . . . . . . . Piercing . | . . . . . . . Highest Corruption . | . . . . . . . Average Corruption . | . . . . . . . Corruption Purged . | . . . . . . . Corruption Blocked . | . . . . . . . Overload Shots . | . . . . . . . Overflow Damage . | . . . . . . . Projectiles . | . . . . . . . Explosions . | . . . . . . . Melee . | . . . . . . . Knockbacks . | . . . . . . . Impact . | . . . . . . . Kinetic . | . . . . . . . Secondary . | . . . . . . . Self-Inflicted Damage . | . . . . . . . Shots . | . . . . . . . Rammed 2 | . . . . . 2 . Targets Rammed 2 | . . . . . 2 . Kicked . | . . . . . . . Crushed . | . . . . . . . Highest Temperature 472 | . 25 472 366 . 252 274 Average Temperature 144 | . 15 182 139 . 112 165 Received Heat Transfer 276 | . 66 99 12 . . 99 Effects 9 | . . 5 4 . . . Shutdowns 4 | . . 4 . . . . Energy Bleed 1 | . . . 1 . . . Interference 3 | . . . 3 . . . Short Circuit 1 | . . 1 . . . . Siege Activations . | . . . . . . . Martial Activations . | . . . . . . . Shielding Activations . | . . . . . . . Robots Disrupted . | . . . . . . . Combat Hostiles . | . . . . . . . Robots Corrupted . | . . . . . . . Combat Hostiles . | . . . . . . . Parts Fried . | . . . . . . . Impact Corruptions . | . . . . . . . Robots Melted 2 | . . . 1 . 1 . Combat Hostiles 2 | . . . 1 . 1 . Parts Melted 3 | . . . 1 . 2 . Heat Transferred 1221 | . . 407 370 . 333 111 Parts Sabotaged . | . . . . . . . Parts Stolen . | . . . . . . . Parts Stripped . | . . . . . . . Power Chain Reactions . | . . . . . . . Alert | -11 -10 -9 -9 -9 -8 -8 ------- Run | Yrd Mat Mat Min Exi Min Mat Maximum Alert Level . | . . . . . . . Low Security (%) 100 | 100 100 100 100 . 100 100 Level 1 . | . . . . . . . Level 2 . | . . . . . . . Level 3 . | . . . . . . . Level 4 . | . . . . . . . Level 5 . | . . . . . . . High Security . | . . . . . . . Max Security . | . . . . . . . Peak Influence 171 | 5 50 55 171 . 136 37 Initial 37 | . . . 13 . . 37 Average 30 | 1 6 15 53 . 61 15 Influence Increases 694 | 10 64 139 235 . 216 30 Destroy 0b10 Robot/C 440 | . 40 80 160 . 160 . Destroy 0b10 Robot/NC 30 | 10 10 10 . . . . Destroy Leader 108 | . 14 34 30 . 30 . Allied During Kill 56 | . . . 30 . 26 . Disable Machine 45 | . . . 15 . . 30 Lose Combat Pursuer 15 | . . 15 . . . . Influence Decreases 694 | 10 64 104 155 115 120 126 Entered New Map 196 | . . . 22 115 . 59 Time Decay 448 | 10 64 94 133 . 100 47 Lost Part 10 | . . 10 . . . . Lost Ally 40 | . . . . . 20 20 Squads Dispatched 2 | . 1 . . . . 1 Investigation . | . . . . . . . Extermination . | . . . . . . . Reinforcement 1 | . 1 . . . . . Assault 1 | . . . . . . 1 Garrison . | . . . . . . . Intercept . | . . . . . . . Searches Triggered . | . . . . . . . Construction Impeded . | . . . . . . . Haulers Reinforced . | . . . . . . . Active Scanning Responses . | . . . . . . . Cargo Convoy Interrupts . | . . . . . . . Stealth | -11 -10 -9 -9 -9 -8 -8 --------- Run | Yrd Mat Mat Min Exi Min Mat Distress Signals 1 | . 1 . . . . . Communications Jammed . | . . . . . . . Distress Signals . | . . . . . . . Times Spotted 35 | . 7 8 7 . 6 7 Peak Tracking Total 7 | . 4 6 3 . 3 7 Tactical Retreats 1 | . . 1 . . . . Traps | -11 -10 -9 -9 -9 -8 -8 ------- Run | Yrd Mat Mat Min Exi Min Mat Traps Triggered . | . . . . . . . Indirectly . | . . . . . . . Trap Hack Attempts . | . . . . . . . Triggered . | . . . . . . . Disarmed . | . . . . . . . Reprogrammed . | . . . . . . . Reused . | . . . . . . . Traps Extracted . | . . . . . . . Installed . | . . . . . . . Triggered . | . . . . . . . Machines | -11 -10 -9 -9 -9 -8 -8 ---------- Run | Yrd Mat Mat Min Exi Min Mat Machines Disabled 4 | . 1 . 1 . . 2 Max in Single Turn 1 | . 1 . 1 . . 1 Machines Repaired . | . . . . . . . Machines Dismantled . | . . . . . . . Machines Sabotaged . | . . . . . . . Overloaded Fab Kills . | . . . . . . . Hacking | -11 -10 -9 -9 -9 -8 -8 --------- Run | Yrd Mat Mat Min Exi Min Mat Machines Accessed 1 | . 1 . . . . . Terminals 1 | . 1 . . . . . Fabricators . | . . . . . . . Repair Stations . | . . . . . . . Recycling Units . | . . . . . . . Scanalyzers . | . . . . . . . Garrison Access . | . . . . . . . Total Hacks 3 | . 3 . . . . . Successful 2 | . 2 . . . . . Failed 1 | . 1 . . . . . Catastrophic . | . . . . . . . Database Lockouts . | . . . . . . . Manual 2 | . 1 . . 1 . . Terminals 3 | . 3 . . . . . Fabricators . | . . . . . . . Repair Stations . | . . . . . . . Recycling Units . | . . . . . . . Scanalyzers . | . . . . . . . Garrison Access . | . . . . . . . Terminal Hacks 1 | . 1 . . . . . Hauler Manifests 1 | . 1 . . . . . Fabricator Hacks . | . . . . . . . Repair Station Hacks . | . . . . . . . Recycling Unit Hacks . | . . . . . . . Scanalyzer . | . . . . . . . Garrison Access Hacks . | . . . . . . . Unauthorized Hacks 1 | . 1 . . . . . Terminals 1 | . 1 . . . . . Botnet 1 | . 1 . . . . . Fabricators . | . . . . . . . Repair Stations . | . . . . . . . Recycling Units . | . . . . . . . Scanalyzers . | . . . . . . . Garrison Access . | . . . . . . . Data Cores Recovered . | . . . . . . . Used . | . . . . . . . Hacking Detections 1 | . 1 . . . . . Full Trace Events 1 | . 1 . . . . . Feedback Events . | . . . . . . . Feedback Blocked . | . . . . . . . Robot Schematics Acquired . | . . . . . . . Robots Built . | . . . . . . . Authchips . | . . . . . . . Time . | . . . . . . . Total Robot Build Rating . | . . . . . . . Part Schematics Acquired . | . . . . . . . Parts Built . | . . . . . . . Authchips . | . . . . . . . Time . | . . . . . . . Total Part Build Rating . | . . . . . . . Part Studies Acquired . | . . . . . . . Parts Repaired . | . . . . . . . Time . | . . . . . . . Parts Recycled . | . . . . . . . Recycled Matter . | . . . . . . . Retrieved Matter . | . . . . . . . Retrieved Components . | . . . . . . . Parts Scanalyzed . | . . . . . . . Part Schematics Acquired . | . . . . . . . Parts Damaged . | . . . . . . . Bothacking | -11 -10 -9 -9 -9 -8 -8 ------------ Run | Yrd Mat Mat Min Exi Min Mat Used RIF Installer . | . . . . . . . Robots Hacked . | . . . . . . . Non-combat . | . . . . . . . Combat . | . . . . . . . Robot Hacks Applied . | . . . . . . . Relay Couplers Released . | . . . . . . . Fabnet Peak Effective % . | . . . . . . . Robots Rewired . | . . . . . . . Allies Hacked . | . . . . . . . Hacks Repelled . | . . . . . . . Allies | -11 -10 -9 -9 -9 -8 -8 -------- Run | Yrd Mat Mat Min Exi Min Mat Total Allies 3 | . . . 3 . . . Largest Group 3 | . . . 3 3 3 1 Highest-Rated Group 40 | . . . 40 39 39 16 Highest-Rated Ally 16 | . . . 16 16 16 16 Total Orders . | . . . . . . . Ally Attacks 49 | . . . 26 . 17 6 Total Damage 479 | . . . 227 . 220 32 Kills 9 | . . . 4 . 5 . Allies Corrupted 1 | . . . . . . 1 Allies Melted . | . . . . . . . Intel | -11 -10 -9 -9 -9 -8 -8 ------- Run | Yrd Mat Mat Min Exi Min Mat Active Infowar (turns) 1096 | 16 59 391 5 239 261 125 Optics 455 | . 59 391 5 . . . Terrain 16 | 16 . . . . . . T.N.C. 625 | . . . . 239 261 125 Robot Analysis Total . | . . . . . . . Derelict Logs Recovered 2 | . . . 2 . . . Drone Launches . | . . . . . . . Drone Recoveries . | . . . . . . . Exploration | -11 -10 -9 -9 -9 -8 -8 ------------- Run | Yrd Mat Mat Min Exi Min Mat Turns Passed 2355 | 109 447 391 592 430 261 125 Spaces Moved 1238 | 55 185 171 348 266 145 68 Core 3 | 3 . . . . . . Treads 1235 | 52 185 171 348 266 145 68 Legs . | . . . . . . . Wheels . | . . . . . . . Hover . | . . . . . . . Flight . | . . . . . . . Fastest Speed 50 | 50 160 160 160 160 160 160 Average Speed 172 | 154 218 185 160 160 160 160 Slowest Speed 240 | 160 240 240 160 160 160 160 Overloaded Moves . | . . . . . . . Propulsion Burnouts . | . . . . . . . Robots Hopped . | . . . . . . . Potential Cave-ins . | . . . . . . . Cave-ins Triggered . | . . . . . . . Exploration Rate (%) 33 | 4 42 17 76 60 31 7 Regions Visited 6 Branch Regions 3 Pre-discovered Areas 1 | . . . 1 . . . Known Exits Taken . | . . . . . . . Unknown Exits Taken 6 | 1 1 1 1 1 1 . Scrap Searched . | . . . . . . . Spaces Dug . | . . . . . . . Terrain Destroyed . | . . . . . . . Melee . | . . . . . . . Projectile . | . . . . . . . AOE . | . . . . . . . Terrain Rammed . | . . . . . . . Walls Destroyed . | . . . . . . . Machines Disabled . | . . . . . . . Actions | -11 -10 -9 -9 -9 -8 -8 --------- Run | Yrd Mat Mat Min Exi Min Mat Total 1367 | 71 205 216 366 273 157 79 Wait . | . . . . . . . Move 1232 | 54 184 170 347 265 144 68 Hop . | . . . . . . . Pick Up 30 | 5 3 12 3 3 1 3 Fast Attach 11 | 8 1 2 . . . . Attach 11 | . . 5 2 1 . 3 Detach 3 | 1 1 . . . . 1 Swap 7 | . 2 4 . . 1 . Drop 15 | . 1 7 1 4 1 1 Fire 56 | 3 13 16 13 . 8 3 Melee . | . . . . . . . Ram . | . . . . . . . Kick . | . . . . . . . Crush 2 | . . . . . 2 . Escape Stasis . | . . . . . . . Rewire . | . . . . . . . Trap . | . . . . . . . Miscellaneous . | . . . . . . . Route ------- -11/Scrapyard -10/Materials (discovered 2 exits: [*Mat] / [*Min]) -9/Materials -9/Mines (discovered 2 exits: [*Mat] / *Exi) -9/Exiles -8/Mines -8/Materials (discovered 1 exit: Sto) History --------- Turn | Location | Event 8 | -11/Scrapyard | Discovered new exit (range 16) 110 | -11/Scrapyard | Entered Materials 309 | -10/Materials | Build established: Mutant 309 | -10/Materials | Discovered new exit (range 7) 483 | -10/Materials | Discovered new exit (range 11) 557 | -10/Materials | Entered another Materials area 557 | -9/Materials | Evolved 2 slots: Power x1, Propulsion x1 923 | -9/Materials | Discovered new exit (range 12) 948 | -9/Materials | Entered Mines 949 | -9/Mines | Met a Derelict testing a Signal Generator 954 | -9/Mines | Found Signal Generator 1106 | -9/Mines | Learned location of Recycling (-8) 1132 | -9/Mines | Assisted by bots powering up and referring to "LRC-V3" 1261 | -9/Mines | Build established: Scavenger-Mutant 1332 | -9/Mines | Discovered new exit (range 8) 1534 | -9/Mines | Deemed a non-threat by the Exiles lab entrance 1534 | -9/Mines | Discovered new exit (range 5) 1540 | -9/Mines | Entered Exiles 1540 | -9/Exiles | Accompanied by 3 allies 1577 | -9/Exiles | Met 8R-AWN 1606 | -9/Exiles | Met EX-HEX 1654 | -9/Exiles | Met EX-BIN 1675 | -9/Exiles | Aligned with FarCom system 1676 | -9/Exiles | Given EX-Vault access code 1716 | -9/Exiles | Opened EX-Vault 1730 | -9/Exiles | Found Prototype Processor 1731 | -9/Exiles | Identified Modified TNC 1767 | -9/Exiles | Warned to stay clear of 0b10 Research branches 1785 | -9/Exiles | Exiles lab attacked by MAIN.C 1945 | -9/Exiles | Discovered new exit (range 14) 1970 | -9/Exiles | Left Exiles lab with Modified TNC 1970 | -9/Exiles | Entered Mines 1970 | -8/Mines | Accompanied by 3 allies 2026 | -8/Mines | Build established: Mutant 2115 | -8/Mines | Discovered new exit (range 11) 2231 | -8/Mines | Entered Materials 2231 | -8/Materials | Accompanied by 1 ally 2231 | -8/Materials | Evolved 2 slots: Utility x2 2232 | -8/Materials | Identified exit to Storage 2356 | -8/Materials | Self-destructed Last Messages --------------- Loading 1 Storage entrance... Dropped Signal Generator. ALERT: Intercepting significant anomalous signal. Dispatching assault force. ALERT: Intercepting significant anomalous signal. Redirecting assault force. Acquired Assault Cannon. ALERT: Intercepting significant anomalous signal. Redirecting assault force. Acquired Imp. Signal Interpreter. Acquired Prototype Hover Unit. B-36 Bruiser unfolds itself. Electrolysis Chamber disabled. B-36 Bruiser suffers critical hit (Burn). Trooper 2b suffers critical hit (Smash). Trooper 2b system corrupted by crushing effect. Trooper 2b knocked back. Acquired 30 matter. Ion Engine destroyed. B-36 Bruiser heat damages Rnf. Ion Engine. Map ----- +----------------------------------------------------+ | | | | | | | | | | | | | | | | | ????????????????????##########???????????????????? | | ????????????????????# #???????????????????? | | ????????????????????# """ #???????????????????? | | ????????????????????# """ #???????????????????? | | ?????################ """ #???????????????????? | | ?????# # #???????????????????? | | ?????# + !! #???????????????????? | | ?????# # !! #???????????????????? | | ?????######+####### # !! #???????????????????? | | ???????# #?# # #???????????????????? | | ???????# #?# ##############???????????????? | | ???????# #?# #???# T ????????????????? | | ???????#""" #?# #???# ???????????????? | | ???????#""" #?# #???# """ """ ??????????????? | | ???????#""" #?# #???# Y""" """ #?????????????? | | ???????#""" #?# ##### """ """ #?????????????? | | ???????# #?# %b % +?????????????? | | ???????# #?#######@g "" """ # ????????????? | | ???????##########???????# g""" """ + ????????????? | | ????????????????????????# " " "" #?????????????? | | ????????????????????????# gY #?????????????? | | ????????????????????????# """ " #?????????????? | | ????????????????????????# """i""" #?????????????? | | ????????????????????????# """ """ #?????????????? | | ????????????????????????# ??????????????? | | ????????????????????????# ??????????????? | | ????????????????????????############??g??????????? | | ?????????????????????????????????????????????????? | | ????????????????????????????????????a?g??????????? | | ?????????????????????????????????????????????????? | | ?????????????????????????????????????????????????? | | ?????????????????????????????????????????????????? | | ?????????????????????????????????????????????????? | | ?????????????????????????????????????????????????? | | ?????????????????????????????????????????????????> | | ?????????????????????????????????????????????????? | | ?????????????????????????????????????????????????? | | ?????????????????????????????????????????????????? | | ?????????????????????????????????????????????????? | | ?????????????????????????????????????????????????? | | ?????????????????????????????????????????????????? | | ?????????????????????????????????????????????????? | +----------------------------------------------------+ Best States ------------- Heat Dissipation 31 Energy Generation 17 Energy Capacity 415 Matter Stores 300 Matter Capacity 300 Sight Range 18 Terrain Scan Range 16 Terrain Scan Density 10 Armor Coverage 150 Evasion (%) 40 Recoil Reduction 3 Item Schematics ----------------- None Robot Schematics ------------------ None Fabricated ------------ Nothing Repaired ---------- Nothing Studied --------- None Alien Tech Used ----------------- None Achievements -------------- None Challenges ------------ None Game ------ Seed SuperquantumAnalysisTrident Manual? 0 Play Time 00:23:42 Cumulative 25.0 hours Start 2025.11.04 @ 14:03:17 End 2025.11.04 @ 14:29:53 Sessions 1 Manual Loads 0 Difficulty Rogue Special Mode None Game No. 35 Rogue 35 Adventurer 0 Explorer 0 Win Type - Total 0 Types 0/0/0/0/0/0/0/0/0/0 Lore% 16 Gallery% 23 Achievement% 15 Wizard Run 0 Options --------- Layout 1 ASCII 0 Keyboard 0 Movement Mouse Keybinds 0 Fullscreen 1 Font 24/Smallcaps Map View 50x35 Zoom Use 0% Tactical HUD 0 Map Filters NONE Filters NONE Steam 1 RUN: 3e66ae3d-fcc0-43be-b900-0b9cc37faffa